Cogmind - Beta 15 @@@ ROGUE MODE // 2025.10.11 @ 18:37:06 Player: rapskalian Result: Destroyed by UJ-RBI(R) with Subdweller Machine Gun Performance ------------- Evolutions (0) 0 Regions Visited (2) 400 Robots Destroyed (11) 55 Value Destroyed (309) 309 Prototype IDs (0) 0 Alien Tech Used (0) 0 Bonus (0) 0 TOTAL SCORE: 764 Bonus ------- None Cogmind --------- Core Integrity 0/250 Matter 167/300 Energy 100/100 System Corruption 0% Temperature Cool (0) Movement Rolling (115) Ox1 Location -10/Subcaves Parts ------- > --- POWER (1) -------- (None) > --- PROPULSION (2) --- Aluminum Leg Compact Wheel > --- UTILITY (2) ------ Large Storage Unit > --- WEAPON (2) ------- (None) > --- INVENTORY (15) --- Ion Engine Light Treads Compact Wheel Small Storage Unit EM Pulse Gun Small Laser Subdweller Beam Cannon Subdweller Shrapnel Launcher Mining Laser Peak State ------------ > --- POWER ------------ Subdweller Power Source > --- PROPULSION ------- Aluminum Leg Aluminum Leg > --- UTILITY ---------- Large Storage Unit Subdweller Optics > --- WEAPON ----------- Assault Rifle Subdweller Shrapnel Launcher > --- INVENTORY -------- Ion Engine Light Treads Light Treads Compact Wheel Compact Wheel Small Storage Unit EM Pulse Gun EM Pulse Gun Small Laser Subdweller Beam Cannon Light Assault Rifle Mining Laser [Rating: 11] Favorites ----------- Power Light Ion Engine Engine Light Ion Engine Propulsion Aluminum Leg Treads Light Treads Leg Aluminum Leg Wheel Compact Wheel Utility Large Storage Unit Device Seismic Detector Storage Large Storage Unit Weapon Assault Rifle Energy Gun EM Pulse Gun Ballistic Gun Assault Rifle Launcher Subdweller Shrapnel Launcher Build | -11 -10 -10 ------- Run | Yrd Mat Sub Slots Evolved . | . . . Power . | . . . Propulsion . | . . . Utility . | . . . Weapon . | . . . Parts Attached 17 | 7 2 8 Power 2 | 1 . 1 Engine 2 | 1 . 1 Core . | . . . Reactor . | . . . Propulsion 6 | 2 . 4 Treads 1 | . . 1 Leg 4 | 2 . 2 Wheel 1 | . . 1 Hover . | . . . Flight . | . . . Utility 5 | 2 2 1 Device 3 | 1 1 1 Storage 2 | 1 1 . Processor . | . . . Hackware . | . . . Protection . | . . . Artifact . | . . . Weapon 4 | 2 . 2 Energy Gun 1 | . . 1 Energy Cannon . | . . . Ballistic Gun 2 | 2 . . Ballistic Cannon . | . . . Launcher 1 | . . 1 Special Weapon . | . . . Impact Weapon . | . . . Slashing Weapon . | . . . Piercing Weapon . | . . . Special Melee Weapon . | . . . Unidentified Prototypes . | . . . Parts Lost 10 | . . 10 Power 1 | . . 1 Propulsion 4 | . . 4 Utility 2 | . . 2 Weapon 3 | . . 3 Highest Loss Streak 3 | . . 3 To Critical Strikes . | . . . Average Backups 10 | 5 10 11 Power . | . 1 1 Propulsion 4 | 3 5 4 Utility . | . . . Weapon 4 | 1 3 5 Tool/Special . | . . . Unused Backups 7 | . . 7 Power 1 | . . 1 Propulsion 2 | . . 2 Utility . | . . . Weapon 4 | . . 4 Tool/Special . | . . . Average Slot Usage (%) 86 | . 100 82 Engine 6 | . 14 4 Treads 3 | . . 4 Leg 24 | . 28 23 Device 8 | . 14 7 Storage 14 | . 14 14 Energy Gun 3 | . . 4 Ballistic Gun 20 | . 28 17 Launcher 3 | . . 5 Peak Build Rating 11 | 9 9 11 Average Rating 7 | 6 7 7 On Entrance 5 | . 9 8 Naked Turns . | . . . Heaviest Build 40 | 12 27 40 Greatest Support 20 | 20 20 20 Greatest Overweight (x) 3 | 3 1 2 Average Overweight (x) . | . . 1 Largest Inventory Capacity 15 | 8 15 15 Average Capacity 13 | 7 13 15 Most Carried 13 | 7 12 13 Average Carried 10 | 5 10 11 Final Capacity 15 | 8 15 15 Final Carried 12 | 7 12 9 Class Distribution -------------------- 75% | Mutant 24% | Scavenger-Mutant Dominant Class ---------------- Mutant | -10/Materials Mutant | -10/Subcaves Resources | -11 -10 -10 ----------- Run | Yrd Mat Sub Matter Collected 465 | 294 48 123 Remotely . | . . . Salvage Created 346 | 91 48 207 Parts 21 | 3 3 15 Haulers Intercepted . | . . . Recyclers Shooed . | . . . Parts Field Recycled . | . . . Retrieved Matter . | . . . Parts Self-Destructed . | . . . Prevented . | . . . Kills | -11 -10 -10 ------- Run | Yrd Mat Sub Combat Hostiles Destroyed 8 | . 1 7 Guns 4 | . 1 3 AOE 4 | . . 4 Classes Destroyed 6 | 2 1 3 Tunneler 2 | 2 . . Recycler 1 | 1 . . Swarmer 1 | . . 1 Grunt 1 | . 1 . Sentry 1 | . . 1 Subdweller 5 | . . 5 Best Kill Streak 2 | 2 1 2 Combat Bots Only 2 | . 1 2 Max Kills in Single Turn 2 | 1 1 2 Gunslinging . | . . . Exploded 2 | . . 2 Melee . | . . . Uniques/NPCs Destroyed . | . . . Combat | -11 -10 -10 -------- Run | Yrd Mat Sub Hostile Shots Fired 64 | . 4 60 Missed 13 | . . 13 Hits 51 | . 4 47 Projectile 51 | . 4 47 AOE 5 | . . 5 Critical Strikes 2 | . . 2 Damage Taken 1136 | . 45 1091 Core 251 | . 10 241 Absorbed by Shields . | . . . Core Remaining (%) 100 | 100 . . Volleys Fired 38 | 10 3 25 Largest 2 | 2 2 2 Hottest 80 | 40 40 80 Shots Fired 71 | 20 6 45 Gun 64 | 20 6 38 Cannon . | . . . Launcher 7 | . . 7 Special . | . . . Kinetic 67 | 20 6 41 Thermal . | . . . Explosive . | . . . Electromagnetic 4 | . . 4 Robot Hit Streak 11 | 5 4 11 Robot Miss Streak 3 | 3 1 3 Penetration Max . | . . . Secondary Targets . | . . . Shots Hit Robots 45 | 10 5 30 Core Hits 22 | 5 2 15 Critical Kills . | . . . Critical Parts Destroyed . | . . . Critical Strikes . | . . . Melee Attacks . | . . . Impact . | . . . Slashing . | . . . Piercing . | . . . Sneak Attacks . | . . . Combat Hostiles . | . . . Follow-up Attacks . | . . . Damage Inflicted 937 | 108 51 778 Guns 387 | 108 51 228 Cannons . | . . . Explosions 550 | . . 550 Melee . | . . . Ramming . | . . . Kinetic 904 | 108 51 745 Thermal . | . . . Explosive . | . . . Electromagnetic 33 | . . 33 Impact . | . . . Slashing . | . . . Piercing . | . . . Highest Corruption . | . . . Average Corruption . | . . . Corruption Purged . | . . . Corruption Blocked . | . . . Overload Shots . | . . . Overflow Damage 25 | . . 25 Projectiles . | . . . Explosions 25 | . . 25 Melee . | . . . Knockbacks . | . . . Impact . | . . . Kinetic . | . . . Secondary . | . . . Self-Inflicted Damage 29 | . . 29 Shots 2 | . . 2 Rammed . | . . . Targets Rammed . | . . . Kicked . | . . . Crushed . | . . . Highest Temperature 10 | . 6 10 Average Temperature 6 | . 6 10 Received Heat Transfer 204 | . 24 180 Siege Activations . | . . . Martial Activations . | . . . Shielding Activations . | . . . Robots Disrupted . | . . . Combat Hostiles . | . . . Robots Corrupted . | . . . Combat Hostiles . | . . . Parts Fried . | . . . Impact Corruptions . | . . . Robots Melted . | . . . Combat Hostiles . | . . . Parts Melted . | . . . Heat Transferred . | . . . Parts Sabotaged . | . . . Parts Stolen . | . . . Parts Stripped . | . . . Power Chain Reactions . | . . . Alert | -11 -10 -10 ------- Run | Yrd Mat Sub Maximum Alert Level . | . . . Low Security (%) 100 | 100 100 . Level 1 . | . . . Level 2 . | . . . Level 3 . | . . . Level 4 . | . . . Level 5 . | . . . High Security . | . . . Max Security . | . . . Peak Influence 20 | 10 20 . Initial . | . . . Average 1 | . 2 . Influence Increases 75 | 15 20 40 Destroy 0b10 Robot/C 60 | . 20 40 Destroy 0b10 Robot/NC 15 | 15 . . Influence Decreases 75 | 15 20 40 Time Decay 55 | 15 20 20 Lost Part 20 | . . 20 Squads Dispatched . | . . . Investigation . | . . . Extermination . | . . . Reinforcement . | . . . Assault . | . . . Garrison . | . . . Intercept . | . . . Searches Triggered . | . . . Construction Impeded . | . . . Haulers Reinforced . | . . . Active Scanning Responses . | . . . Cargo Convoy Interrupts . | . . . Stealth | -11 -10 -10 --------- Run | Yrd Mat Sub Distress Signals . | . . . Communications Jammed . | . . . Distress Signals . | . . . Times Spotted 12 | . 1 11 Peak Tracking Total 3 | . 1 3 Tactical Retreats . | . . . Traps | -11 -10 -10 ------- Run | Yrd Mat Sub Traps Triggered . | . . . Indirectly . | . . . Trap Hack Attempts . | . . . Triggered . | . . . Disarmed . | . . . Reprogrammed . | . . . Reused . | . . . Traps Extracted . | . . . Installed . | . . . Triggered . | . . . Machines | -11 -10 -10 ---------- Run | Yrd Mat Sub Machines Disabled . | . . . Max in Single Turn . | . . . Machines Repaired . | . . . Machines Dismantled . | . . . Machines Sabotaged . | . . . Overloaded Fab Kills . | . . . Hacking | -11 -10 -10 --------- Run | Yrd Mat Sub Machines Accessed 1 | . 1 . Terminals 1 | . 1 . Fabricators . | . . . Repair Stations . | . . . Recycling Units . | . . . Scanalyzers . | . . . Garrison Access . | . . . Total Hacks 1 | . 1 . Successful . | . . . Failed 1 | . 1 . Catastrophic . | . . . Database Lockouts . | . . . Manual 1 | . 1 . Terminals 1 | . 1 . Fabricators . | . . . Repair Stations . | . . . Recycling Units . | . . . Scanalyzers . | . . . Garrison Access . | . . . Terminal Hacks . | . . . Fabricator Hacks . | . . . Repair Station Hacks . | . . . Recycling Unit Hacks . | . . . Scanalyzer . | . . . Garrison Access Hacks . | . . . Unauthorized Hacks . | . . . Terminals . | . . . Fabricators . | . . . Repair Stations . | . . . Recycling Units . | . . . Scanalyzers . | . . . Garrison Access . | . . . Data Cores Recovered . | . . . Used . | . . . Hacking Detections 1 | . 1 . Full Trace Events . | . . . Feedback Events . | . . . Feedback Blocked . | . . . Robot Schematics Acquired . | . . . Robots Built . | . . . Authchips . | . . . Time . | . . . Total Robot Build Rating . | . . . Part Schematics Acquired . | . . . Parts Built . | . . . Authchips . | . . . Time . | . . . Total Part Build Rating . | . . . Parts Repaired . | . . . Time . | . . . Parts Recycled . | . . . Recycled Matter . | . . . Retrieved Matter . | . . . Retrieved Components . | . . . Parts Scanalyzed . | . . . Part Schematics Acquired . | . . . Parts Damaged . | . . . Bothacking | -11 -10 -10 ------------ Run | Yrd Mat Sub Used RIF Installer . | . . . Robots Hacked . | . . . Non-combat . | . . . Combat . | . . . Robot Hacks Applied . | . . . Relay Couplers Released . | . . . Fabnet Peak Effective % . | . . . Robots Rewired . | . . . Allies Hacked . | . . . Hacks Repelled . | . . . Allies | -11 -10 -10 -------- Run | Yrd Mat Sub Total Allies . | . . . Largest Group . | . . . Highest-Rated Group . | . . . Highest-Rated Ally . | . . . Total Orders . | . . . Ally Attacks . | . . . Total Damage . | . . . Kills . | . . . Allies Corrupted . | . . . Allies Melted . | . . . Intel | -11 -10 -10 ------- Run | Yrd Mat Sub Active Infowar (turns) 659 | 54 221 384 Optics 247 | . . 247 Terrain 80 | 54 26 . Seismic 332 | . 195 137 Robot Analysis Total . | . . . Derelict Logs Recovered . | . . . Drone Launches . | . . . Drone Recoveries . | . . . Exploration | -11 -10 -10 ------------- Run | Yrd Mat Sub Turns Passed 1072 | 118 221 733 Spaces Moved 503 | 62 121 320 Core 16 | 16 . . Treads 89 | . . 89 Legs 394 | 46 121 227 Wheels 4 | . . 4 Hover . | . . . Flight . | . . . Fastest Speed 50 | 50 120 115 Average Speed 184 | 118 170 203 Slowest Speed 260 | 200 190 260 Overloaded Moves . | . . . Propulsion Burnouts . | . . . Robots Hopped . | . . . Potential Cave-ins . | . . . Cave-ins Triggered . | . . . Exploration Rate (%) 13 | 4 16 19 Regions Visited 2 Branch Regions 1 Pre-discovered Areas . | . . . Known Exits Taken . | . . . Unknown Exits Taken 2 | 1 1 . Scrap Searched . | . . . Spaces Dug . | . . . Terrain Destroyed 87 | . . 87 Melee . | . . . Projectile . | . . . AOE 87 | . . 87 Terrain Rammed . | . . . Walls Destroyed . | . . . Machines Disabled . | . . . Actions | -11 -10 -10 --------- Run | Yrd Mat Sub Total 574 | 85 130 359 Wait 1 | . 1 . Move 501 | 61 120 320 Hop . | . . . Pick Up 14 | 7 4 3 Fast Attach 8 | 7 . 1 Attach 6 | . . 6 Detach . | . . . Swap 5 | . 2 3 Drop 1 | . . 1 Fire 38 | 10 3 25 Melee . | . . . Ram . | . . . Kick . | . . . Crush . | . . . Escape Stasis . | . . . Rewire . | . . . Trap . | . . . Miscellaneous . | . . . Route ------- -11/Scrapyard -10/Materials -10/Subcaves (discovered 1 exit: [*Mat]) History --------- Turn | Location | Event 30 | -11/Scrapyard | Discovered new exit (range 14) 119 | -11/Scrapyard | Entered Materials 316 | -10/Materials | Build established: Mutant 329 | -10/Materials | Discovered new exit (range 6) 340 | -10/Materials | Entered Subcaves 341 | -10/Subcaves | Approached by a straggling Scientist 508 | -10/Subcaves | Lost 3 parts (1p1n1u) 826 | -10/Subcaves | Core integrity fell below 50% 828 | -10/Subcaves | Ambushed by Subdweller buried in earth 853 | -10/Subcaves | Core integrity fell below 20% 880 | -10/Subcaves | Lost 3 parts (1n1u1w) 936 | -10/Subcaves | Discovered new exit (range 8) 1066 | -10/Subcaves | Ambushed by Subdweller buried in earth 1073 | -10/Subcaves | Destroyed by UJ-RBI(R) with Subdweller Machine Gun Last Messages --------------- 00618_ Subatomizers dissect the Disposable Heat Sink. 00825_ S-10 Pest destroyed. 00828_ Destroyed Ion Engine. 00828_ Assault Rifle destroyed. 00829_ 2Q-A7P(R): "ARGHSUB!" 00831_ G-34 Mercenary destroyed. 00832_ 2Q-A7P(R) destroyed. 00834_ Aluminum Leg destroyed. 00837_ Critical hit (Burn: +37). 00849_ Sub. Optics destroyed. 00853_ Y-45 Defender destroyed. 00876_ Acquired 21 matter. 00884_ Acquired 4 matter. 00936_ EXIT=FOUND 00951_ UN-RDI(u) deconstructs Twisted Machinery. 00979_ Subatomizers dissect the Sub. Beam Cannon. 01060_ EM Pulse Gun destroyed. 01064_ Lgt. Assault Rifle destroyed. 01066_ Lgt. Treads destroyed. 01067_ UJ-RBI(R): "ARGHSUB!" Map ----- +----------------------------------------------------+ | | | | | | | | | | | ?????????????????????????????????????????????????? | | ?????????????????????????????????????????????????? | | ?????????????????????????????????????????????????? | | ?????????????????????????????????????????????????? | | ?????????????????????????????????????????????????? | | ?????????????????????????????????????????????????? | | ?????????????????????????????????????????????????? | | ?????????????????????????????????????????????????? | | ?????????????????????????????????????????????????? | | ?????????????????????????????????????????????????? | | ?????????????????????????????????????????????????? | | ?????????????????????????????????????????????????? | | ??????????????????????????????????????????###????? | | ???????????????????#####????????????####### ###??? | | ???????????????????#;;;####?????????# #??? | | ????????????????#### ;;##???????## ##?? | | ?????????????#### #???????# #?? | | ?????????????#; ; #?????### ##### | | ?????????????## R #?????#"# ## | | ????????????## ######## | | ??????????#?# @ ## # # = | | ??????????# #< ! | | ??????????# ; ## ## ] " | | ??????????# # R ####### ; ## ### | | ????????? ?## #?????## # ####### | | ????????##?# ####?????# ## | | ???????????# ##????????## ### ### | | ???????????# ##??????????## ### #### | | ?????????? ##????????##### #?## ## | | ????????? ##???????### ## ##??### # | | ???????? #?######## # #????# # # | | ???????## ##?# ##???# "" ## | | ????????# ##### #???# "# ""# | | ????????## ???# ### #?#### "" ## | | ????????? ??# ## ### ## ###"" # | | ????????## ???? ????# ## ###" < | | ????????? ?????? ???????# #??#"" | | ?????????#?????????????### ##???### | | ???????????????????????# ##??????? | | ???????????????????????## ## ####?????????? | | ????????????????????????# ### #????????????? | | ???????????????????????## ## #????????????? | | ???????????????????????# ### ####????????????? | | ???????????????????????## ### #???????????????? | | ?????????????#####?###### ## ##???????????????? | +----------------------------------------------------+ Best States ------------- Heat Dissipation 25 Energy Generation 15 Energy Capacity 200 Matter Stores 300 Matter Capacity 300 Sight Range 21 Terrain Scan Range 16 Terrain Scan Density 10 Evasion (%) 55 Recoil Reduction 1 Item Schematics ----------------- None Robot Schematics ------------------ None Fabricated ------------ Nothing Repaired ---------- Nothing Alien Tech Used ----------------- None Achievements -------------- None Challenges ------------ None Game ------ Seed StormAccelerationShredder Manual? 0 Play Time 00:11:50 Cumulative 37.5 hours Start 2025.10.11 @ 18:22:46 End 2025.10.11 @ 18:37:06 Sessions 1 Manual Loads 0 Difficulty Rogue Special Mode None Game No. 38 Rogue 38 Adventurer 0 Explorer 0 Win Type - Total 0 Types 0/0/0/0/0/0/0/0/0/0 Lore% 16 Gallery% 31 Achievement% 21 Wizard Run 0 Options --------- Layout 0 ASCII 0 Keyboard 0 Movement Mouse Keybinds 0 Fullscreen 1 Font 24/Smallcaps Map View 76x50 Zoom Use 0% Tactical HUD 1 Map Filters NONE Filters NONE Steam 1 RUN: 972703d4-c3e4-43b8-bb96-503f2ec16937